[Event "*** Titled Tuesday Blitz"]
[Site "Chess.com"]
[Date "2020.11.03"]
[Round "9"]
[White "frederiksvane"]
[Black "enriquetejedor"]
[Result "1-0"]
[WhiteElo "2651"]
[BlackElo "2495"]
[TimeControl "180+1"]
[EndTime "11:47:42 PST"]
[Termination "frederiksvane won by checkmate"]

1. e4 {[%clk 0:03:00.9]} 1... c5 {[%clk 0:02:39.2]} 2. Nf3 {[%clk 0:03:00.7]}
2... d6 {[%clk 0:02:37.7]} 3. Bb5+ {[%clk 0:02:59.7]} 3... Bd7 {[%clk
0:02:23.6]} 4. c4 {[%clk 0:02:57.6]} 4... Nf6 {[%clk 0:01:39.5]} 5. Nc3 {[%clk
0:02:57.1]} 5... g6 {[%clk 0:01:31.2]} 6. d4 {[%clk 0:02:57.1]} 6... cxd4 {[%clk
0:01:30.2]} 7. Nxd4 {[%clk 0:02:58]} 7... Bg7 {[%clk 0:01:29.2]} 8. Be3 {[%clk
0:02:58.3]} 8... O-O {[%clk 0:01:16.3]} 9. h3 {[%clk 0:02:58.6]} 9... Nc6 {[%clk
0:01:15.8]} 10. O-O {[%clk 0:02:58.3]} 10... a6 {[%clk 0:01:04.5]} 11. Bxc6
{[%clk 0:02:58]} 11... bxc6 {[%clk 0:01:04.2]} 12. Nf3 {[%clk 0:02:55.5]} 12...
Rb8 {[%clk 0:01:02.6]} 13. Qe2 {[%clk 0:02:44.5]} 13... Qa5 {[%clk 0:00:49.9]}
14. Rfd1 {[%clk 0:02:38.2]} 14... Rxb2 {[%clk 0:00:35.4]} 15. Qxb2 {[%clk
0:02:29.1]} 15... Nxe4 {[%clk 0:00:34.8]} 16. Bd4 {[%clk 0:02:22.1]} 16... Nxc3
{[%clk 0:00:34]} 17. Bxg7 {[%clk 0:02:15.2]} 17... Nxd1 {[%clk 0:00:18.6]} 18.
Rxd1 {[%clk 0:02:10.3]} 18... Re8 {[%clk 0:00:18]} 19. Bh6 {[%clk 0:01:59]}
19... f6 {[%clk 0:00:16]} 20. Rxd6 {[%clk 0:01:51.3]} 20... Bf5 {[%clk
0:00:02.1]} 21. Rxf6 {[%clk 0:01:21.4]} 21... exf6 {[%clk 0:00:01.9]} 22. Qb7
{[%clk 0:01:20.6]} 22... Re1+ {[%clk 0:00:01]} 23. Kh2 {[%clk 0:01:19.5]} 23...
Bd7 {[%clk 0:00:01.2]} 24. Qxd7 {[%clk 0:01:13.8]} 24... Qe5+ {[%clk 0:00:01.3]}
25. Nxe5 {[%clk 0:01:13.6]} 25... Rxe5 {[%clk 0:00:01.5]} 26. Qg7# {[%clk
0:01:14.5]} 1-0

[Event "*** Titled Tuesday Blitz"]
[Site "Chess.com"]
[Date "2020.11.03"]
[Round "9"]
[White "Qvalda"]
[Black "Sacbutt"]
[Result "1-0"]
[WhiteElo "2393"]
[BlackElo "2292"]
[TimeControl "180+1"]
[EndTime "11:47:48 PST"]
[Termination "Qvalda won by resignation"]

1. e4 {[%clk 0:03:00.9]} 1... c5 {[%clk 0:02:57.5]} 2. c3 {[%clk 0:03:00.7]}
2... d5 {[%clk 0:02:56.9]} 3. exd5 {[%clk 0:03:01.6]} 3... Qxd5 {[%clk
0:02:57.3]} 4. d4 {[%clk 0:03:01]} 4... Nc6 {[%clk 0:02:57.2]} 5. Nf3 {[%clk
0:03:01.2]} 5... Bg4 {[%clk 0:02:57.3]} 6. Be2 {[%clk 0:03:00.9]} 6... e6 {[%clk
0:02:57.3]} 7. O-O {[%clk 0:03:01]} 7... Nf6 {[%clk 0:02:57.4]} 8. h3 {[%clk
0:03:01.5]} 8... Bh5 {[%clk 0:02:56.8]} 9. Be3 {[%clk 0:03:01.1]} 9... cxd4
{[%clk 0:02:56.5]} 10. Nxd4 {[%clk 0:03:02]} 10... Bxe2 {[%clk 0:02:54.9]} 11.
Qxe2 {[%clk 0:03:02.9]} 11... Nxd4 {[%clk 0:02:54.4]} 12. Bxd4 {[%clk
0:03:03.8]} 12... Be7 {[%clk 0:02:54.1]} 13. Rd1 {[%clk 0:03:03.6]} 13... Qc6
{[%clk 0:02:53.8]} 14. c4 {[%clk 0:03:04]} 14... O-O {[%clk 0:02:53.5]} 15. Nc3
{[%clk 0:03:04.4]} 15... b6 {[%clk 0:02:42.9]} 16. Rac1 {[%clk 0:03:03.8]} 16...
Rfd8 {[%clk 0:02:40.9]} 17. Rd2 {[%clk 0:02:45.8]} 17... Rd7 {[%clk 0:02:35.5]}
18. Rcd1 {[%clk 0:02:45.2]} 18... Rad8 {[%clk 0:02:33.8]} 19. b3 {[%clk
0:02:28.6]} 19... h6 {[%clk 0:02:27.8]} 20. g3 {[%clk 0:02:22.2]} 20... Nh7
{[%clk 0:01:27.2]} 21. Be3 {[%clk 0:01:56.8]} 21... Ng5 {[%clk 0:01:19]} 22.
Bxg5 {[%clk 0:01:52.5]} 22... Bxg5 {[%clk 0:01:19.9]} 23. Rxd7 {[%clk
0:01:52.2]} 23... Rxd7 {[%clk 0:01:20.8]} 24. Rxd7 {[%clk 0:01:45.4]} 24... Qxd7
{[%clk 0:01:21.7]} 25. Ne4 {[%clk 0:01:45.3]} 25... Be7 {[%clk 0:01:20.4]} 26.
Kg2 {[%clk 0:01:36.8]} 26... Qd4 {[%clk 0:01:19.6]} 27. Qf3 {[%clk 0:01:35]}
27... f5 {[%clk 0:01:09.5]} 28. Nc3 {[%clk 0:01:25.5]} 28... Bc5 {[%clk
0:01:00.6]} 29. Nb5 {[%clk 0:01:20.1]} 29... Qd2 {[%clk 0:00:50.7]} 30. a4
{[%clk 0:01:10.5]} 30... a5 {[%clk 0:00:48.6]} 31. Nc7 {[%clk 0:01:09.9]} 31...
Kf7 {[%clk 0:00:45.6]} 32. g4 {[%clk 0:01:07.4]} 32... g6 {[%clk 0:00:42.3]} 33.
h4 {[%clk 0:01:05.7]} 33... Kg7 {[%clk 0:00:35.6]} 34. Nxe6+ {[%clk 0:01:01.4]}
1-0

[Event "*** Titled Tuesday Blitz"]
[Site "Chess.com"]
[Date "2020.11.03"]
[Round "9"]
[White "akanga001"]
[Black "maicolbenavides"]
[Result "0-1"]
[WhiteElo "1932"]
[BlackElo "2190"]
[TimeControl "180+1"]
[EndTime "11:47:52 PST"]
[Termination "maicolbenavides won by resignation"]

1. d4 {[%clk 0:02:28.7]} 1... Nf6 {[%clk 0:02:58.7]} 2. c4 {[%clk 0:02:28.3]}
2... c5 {[%clk 0:02:57.6]} 3. d5 {[%clk 0:02:27.1]} 3... b5 {[%clk 0:02:49.7]}
4. cxb5 {[%clk 0:02:22]} 4... a6 {[%clk 0:02:49.7]} 5. e3 {[%clk 0:02:22]} 5...
g6 {[%clk 0:02:48.1]} 6. Nc3 {[%clk 0:02:21.7]} 6... Bg7 {[%clk 0:02:47.1]} 7.
Nf3 {[%clk 0:02:20.6]} 7... O-O {[%clk 0:02:43.2]} 8. e4 {[%clk 0:02:19.8]} 8...
d6 {[%clk 0:02:41.8]} 9. a4 {[%clk 0:02:10.4]} 9... Qa5 {[%clk 0:02:40.4]} 10.
Bd2 {[%clk 0:02:08.5]} 10... axb5 {[%clk 0:02:38.9]} 11. Bxb5 {[%clk 0:02:08.1]}
11... Ba6 {[%clk 0:02:34.2]} 12. O-O {[%clk 0:01:55.8]} 12... Nbd7 {[%clk
0:02:31.6]} 13. Re1 {[%clk 0:01:48]} 13... Bxb5 {[%clk 0:02:26.3]} 14. Nxb5
{[%clk 0:01:45.1]} 14... Qb6 {[%clk 0:02:25.4]} 15. b3 {[%clk 0:01:38.4]} 15...
Ng4 {[%clk 0:02:11.8]} 16. Rc1 {[%clk 0:01:36.6]} 16... Nge5 {[%clk 0:02:08.6]}
17. Nxe5 {[%clk 0:01:35.8]} 17... Nxe5 {[%clk 0:02:09.5]} 18. Bc3 {[%clk
0:01:35.3]} 18... Rfc8 {[%clk 0:01:54.2]} 19. f4 {[%clk 0:01:34.6]} 19... Nd7
{[%clk 0:01:51.2]} 20. Bxg7 {[%clk 0:01:33.8]} 20... Kxg7 {[%clk 0:01:52.1]} 21.
e5 {[%clk 0:01:33.2]} 21... c4+ {[%clk 0:01:45.3]} 22. Kh1 {[%clk 0:01:24.1]}
22... cxb3 {[%clk 0:01:44.1]} 23. Qxb3 {[%clk 0:01:22.5]} 23... Nc5 {[%clk
0:01:37.1]} 24. Qg3 {[%clk 0:01:05.7]} 24... Rxa4 {[%clk 0:01:32.4]} 25. Nc3
{[%clk 0:01:02.2]} 25... Rc4 {[%clk 0:01:29.9]} 26. exd6 {[%clk 0:01:00.4]}
26... exd6 {[%clk 0:01:21.6]} 27. f5 {[%clk 0:00:55.4]} 27... Ne4 {[%clk
0:01:15.9]} 28. f6+ {[%clk 0:00:41.2]} 28... Kg8 {[%clk 0:01:04]} 29. Qh4 {[%clk
0:00:37.3]} 29... Nf2+ {[%clk 0:01:01.3]} 30. Kg1 {[%clk 0:00:33.7]} 30... Rxh4
{[%clk 0:00:58.8]} 0-1

[Event "*** Titled Tuesday Blitz"]
[Site "Chess.com"]
[Date "2020.11.03"]
[Round "9"]
[White "Rital44"]
[Black "Chuchofrio1"]
[Result "0-1"]
[WhiteElo "2439"]
[BlackElo "2347"]
[TimeControl "180+1"]
[EndTime "11:47:53 PST"]
[Termination "Chuchofrio1 won on time"]

1. e3 {[%clk 0:02:55.4]} 1... f5 {[%clk 0:02:59.8]} 2. b3 {[%clk 0:02:55.1]}
2... Nf6 {[%clk 0:03:00.5]} 3. Bb2 {[%clk 0:02:49.1]} 3... e6 {[%clk 0:03:00]}
4. f4 {[%clk 0:02:48.8]} 4... Be7 {[%clk 0:02:59.9]} 5. Nf3 {[%clk 0:02:49.3]}
5... O-O {[%clk 0:03:00.5]} 6. Be2 {[%clk 0:02:48.9]} 6... Nc6 {[%clk
0:03:01.2]} 7. h3 {[%clk 0:02:48.3]} 7... d6 {[%clk 0:03:01.9]} 8. g4 {[%clk
0:02:48.7]} 8... Qe8 {[%clk 0:03:00.9]} 9. g5 {[%clk 0:02:48]} 9... Nd5 {[%clk
0:03:00.7]} 10. h4 {[%clk 0:02:46.6]} 10... Bd8 {[%clk 0:03:00.4]} 11. h5 {[%clk
0:02:46.9]} 11... e5 {[%clk 0:03:00.8]} 12. Bc4 {[%clk 0:02:46.3]} 12... Be6
{[%clk 0:03:00]} 13. h6 {[%clk 0:02:39.8]} 13... g6 {[%clk 0:02:56.4]} 14. Qe2
{[%clk 0:02:38.9]} 14... exf4 {[%clk 0:02:55.6]} 15. Nc3 {[%clk 0:02:35.7]}
15... Nxc3 {[%clk 0:02:50.8]} 16. Bxc3 {[%clk 0:02:35.9]} 16... Bxc4 {[%clk
0:02:50.7]} 17. Qxc4+ {[%clk 0:02:35.9]} 17... Rf7 {[%clk 0:02:45.2]} 18. O-O-O
{[%clk 0:02:34.4]} 18... fxe3 {[%clk 0:02:43.6]} 19. Nd4 {[%clk 0:02:34.5]}
19... Ne5 {[%clk 0:02:41.8]} 20. Qd5 {[%clk 0:02:22]} 20... exd2+ {[%clk
0:02:34.3]} 21. Kb1 {[%clk 0:02:17.4]} 21... Bxg5 {[%clk 0:02:25.8]} 22. Ne6
{[%clk 0:02:16.5]} 22... Bf6 {[%clk 0:02:19.5]} 23. Nxc7 {[%clk 0:02:16.5]}
23... Qc8 {[%clk 0:02:15]} 24. Nb5 {[%clk 0:01:29.8]} 24... a6 {[%clk
0:01:54.6]} 25. Bxe5 {[%clk 0:00:59.2]} 25... Bxe5 {[%clk 0:01:47.1]} 26. Nd4
{[%clk 0:00:25.9]} 26... Qc3 {[%clk 0:01:38.5]} 27. Rh4 {[%clk 0:00:25.3]} 27...
Rc8 {[%clk 0:01:28.1]} 28. Rg1 {[%clk 0:00:04.2]} 28... Bxd4 {[%clk 0:01:23.2]}
29. Rxg6+ {[%clk 0:00:04.4]} 29... Kf8 {[%clk 0:01:18.2]} 30. Rg8+ {[%clk
0:00:02.3]} 30... Kxg8 {[%clk 0:01:17]} 0-1

[Event "*** Titled Tuesday Blitz"]
[Site "Chess.com"]
[Date "2020.11.03"]
[Round "9"]
[White "Javylavilla"]
[Black "talyamania"]
[Result "1-0"]
[WhiteElo "2257"]
[BlackElo "2349"]
[TimeControl "180+1"]
[EndTime "11:47:54 PST"]
[Termination "Javylavilla won by checkmate"]

1. e4 {[%clk 0:03:00.9]} 1... c5 {[%clk 0:02:58.6]} 2. Nf3 {[%clk 0:03:00.2]}
2... d6 {[%clk 0:02:57.9]} 3. d4 {[%clk 0:02:59.9]} 3... cxd4 {[%clk 0:02:57.9]}
4. Nxd4 {[%clk 0:03:00.8]} 4... Nf6 {[%clk 0:02:57.9]} 5. Nc3 {[%clk 0:03:00.4]}
5... a6 {[%clk 0:02:58]} 6. Bg5 {[%clk 0:02:57.2]} 6... e6 {[%clk 0:02:57.5]} 7.
f4 {[%clk 0:02:56.7]} 7... Be7 {[%clk 0:02:56.9]} 8. Qf3 {[%clk 0:02:55.3]} 8...
Qc7 {[%clk 0:02:56.5]} 9. O-O-O {[%clk 0:02:54.7]} 9... Nbd7 {[%clk 0:02:56.2]}
10. g4 {[%clk 0:02:54.1]} 10... b5 {[%clk 0:02:56.1]} 11. Bxf6 {[%clk
0:02:53.8]} 11... Nxf6 {[%clk 0:02:55.3]} 12. g5 {[%clk 0:02:54]} 12... Nd7
{[%clk 0:02:55.1]} 13. f5 {[%clk 0:02:54.4]} 13... Bxg5+ {[%clk 0:02:54.8]} 14.
Kb1 {[%clk 0:02:53.8]} 14... Ne5 {[%clk 0:02:54.7]} 15. Qh5 {[%clk 0:02:52.9]}
15... Qd8 {[%clk 0:02:54.1]} 16. Nxe6 {[%clk 0:02:49.3]} 16... Bxe6 {[%clk
0:02:51.1]} 17. fxe6 {[%clk 0:02:50.2]} 17... O-O {[%clk 0:02:47.8]} 18. exf7+
{[%clk 0:02:45.4]} 18... Rxf7 {[%clk 0:02:38.5]} 19. Bh3 {[%clk 0:02:38.8]}
19... g6 {[%clk 0:02:36.7]} 20. Qe2 {[%clk 0:02:35.1]} 20... Rf3 {[%clk
0:02:18.2]} 21. Be6+ {[%clk 0:02:28.4]} 21... Kg7 {[%clk 0:02:17.8]} 22. h4
{[%clk 0:02:14]} 22... Bf6 {[%clk 0:01:42]} 23. h5 {[%clk 0:02:11.9]} 23... Rxc3
{[%clk 0:01:32.3]} 24. bxc3 {[%clk 0:02:07.6]} 24... g5 {[%clk 0:01:18]} 25. h6+
{[%clk 0:02:01.3]} 25... Kh8 {[%clk 0:01:16.1]} 26. Rhf1 {[%clk 0:01:56.7]}
26... Qe7 {[%clk 0:01:11.7]} 27. Bd5 {[%clk 0:01:51.7]} 27... Rc8 {[%clk
0:01:03.7]} 28. Rf2 {[%clk 0:01:30.7]} 28... g4 {[%clk 0:00:56.1]} 29. Rdf1
{[%clk 0:01:28.3]} 29... Nf3 {[%clk 0:00:55.4]} 30. Rxf3 {[%clk 0:01:19.6]}
30... gxf3 {[%clk 0:00:54.9]} 31. Qxf3 {[%clk 0:01:20.5]} 31... Bxc3 {[%clk
0:00:40.8]} 32. Qg4 {[%clk 0:01:19.8]} 32... Rf8 {[%clk 0:00:20.3]} 33. Rg1
{[%clk 0:01:16.2]} 33... Qd8 {[%clk 0:00:18.2]} 34. Qg7+ {[%clk 0:01:10.9]}
34... Bxg7 {[%clk 0:00:16.2]} 35. hxg7# {[%clk 0:01:11.8]} 1-0

[Event "*** Titled Tuesday Blitz"]
[Site "Chess.com"]
[Date "2020.11.03"]
[Round "9"]
[White "Ural_bogatyr"]
[Black "Nikolaj_6"]
[Result "0-1"]
[WhiteElo "2385"]
[BlackElo "2551"]
[TimeControl "180+1"]
[EndTime "11:47:58 PST"]
[Termination "Nikolaj_6 won by checkmate"]

1. e4 {[%clk 0:02:50.2]} 1... c5 {[%clk 0:02:59.1]} 2. Nf3 {[%clk 0:02:49.9]}
2... e6 {[%clk 0:02:59]} 3. c3 {[%clk 0:02:49.2]} 3... Nf6 {[%clk 0:02:57]} 4.
e5 {[%clk 0:02:49.5]} 4... Nd5 {[%clk 0:02:57.1]} 5. d4 {[%clk 0:02:50.4]} 5...
cxd4 {[%clk 0:02:54.9]} 6. Qxd4 {[%clk 0:02:51.3]} 6... Nc6 {[%clk 0:02:53.2]}
7. Qe4 {[%clk 0:02:51.6]} 7... f5 {[%clk 0:02:53.3]} 8. Qe2 {[%clk 0:02:50.9]}
8... Be7 {[%clk 0:02:35.9]} 9. g3 {[%clk 0:02:50.9]} 9... O-O {[%clk 0:02:35]}
10. Bg2 {[%clk 0:02:51.4]} 10... b5 {[%clk 0:02:27.6]} 11. O-O {[%clk
0:02:49.4]} 11... a5 {[%clk 0:02:27.3]} 12. Rd1 {[%clk 0:02:49.8]} 12... Ba6
{[%clk 0:02:21.1]} 13. Nd4 {[%clk 0:02:46.7]} 13... b4 {[%clk 0:02:11.2]} 14. c4
{[%clk 0:02:44.9]} 14... Rc8 {[%clk 0:02:02.9]} 15. b3 {[%clk 0:02:24.8]} 15...
f4 {[%clk 0:01:43.4]} 16. Qg4 {[%clk 0:02:13.5]} 16... Nxd4 {[%clk 0:01:37.5]}
17. Rxd4 {[%clk 0:02:09.3]} 17... Bc5 {[%clk 0:01:32.5]} 18. Rxd5 {[%clk
0:02:05.9]} 18... exd5 {[%clk 0:01:30.5]} 19. Bxd5+ {[%clk 0:02:04.6]} 19... Kh8
{[%clk 0:01:30.4]} 20. Bxf4 {[%clk 0:02:04.2]} 20... Bd4 {[%clk 0:01:30.1]} 21.
Nd2 {[%clk 0:01:57]} 21... Bxa1 {[%clk 0:01:26.5]} 22. Ne4 {[%clk 0:01:57.5]}
22... Qe8 {[%clk 0:01:08.7]} 23. Ng5 {[%clk 0:01:44.9]} 23... Bxe5 {[%clk
0:00:49.9]} 24. Nxh7 {[%clk 0:01:42.2]} 24... Bxf4 {[%clk 0:00:45.1]} 25. Nxf8
{[%clk 0:01:37.8]} 25... Qxf8 {[%clk 0:00:37.3]} 26. gxf4 {[%clk 0:01:29.2]}
26... Qf6 {[%clk 0:00:37.2]} 27. Qxd7 {[%clk 0:01:18.6]} 27... Rf8 {[%clk
0:00:35.3]} 28. f3 {[%clk 0:01:06.2]} 28... Bc8 {[%clk 0:00:34.1]} 29. Qc7
{[%clk 0:01:00.8]} 29... Qxf4 {[%clk 0:00:33.6]} 30. Qxa5 {[%clk 0:01:00.8]}
30... Bh3 {[%clk 0:00:28.3]} 31. Qxb4 {[%clk 0:00:58.3]} 31... Qe3+ {[%clk
0:00:26.9]} 32. Kh1 {[%clk 0:00:55.4]} 32... Qc1+ {[%clk 0:00:25.9]} 33. Qe1
{[%clk 0:00:54.3]} 33... Qxe1# {[%clk 0:00:25.4]} 0-1

[Event "*** Titled Tuesday Blitz"]
[Site "Chess.com"]
[Date "2020.11.03"]
[Round "9"]
[White "JosefineHeinemann"]
[Black "Harsha_Bharathakoti"]
[Result "0-1"]
[WhiteElo "2606"]
[BlackElo "2810"]
[TimeControl "180+1"]
[EndTime "11:48:02 PST"]
[Termination "Harsha_Bharathakoti won by resignation"]

1. e4 {[%clk 0:03:00.9]} 1... c5 {[%clk 0:02:59.2]} 2. Nf3 {[%clk 0:02:56.2]}
2... Nc6 {[%clk 0:02:59.1]} 3. d4 {[%clk 0:02:55.2]} 3... cxd4 {[%clk 0:03:00]}
4. Nxd4 {[%clk 0:02:55.9]} 4... Nf6 {[%clk 0:02:59.6]} 5. Nc3 {[%clk 0:02:55.7]}
5... d6 {[%clk 0:03:00.1]} 6. f3 {[%clk 0:02:55.1]} 6... e5 {[%clk 0:02:58.9]}
7. Nb3 {[%clk 0:02:53.6]} 7... Be7 {[%clk 0:02:58.9]} 8. Be3 {[%clk 0:02:53.8]}
8... O-O {[%clk 0:02:57.1]} 9. Qd2 {[%clk 0:02:54.1]} 9... a5 {[%clk 0:02:57.7]}
10. Bb5 {[%clk 0:02:52.1]} 10... Be6 {[%clk 0:02:53.5]} 11. Rd1 {[%clk
0:02:50.6]} 11... Na7 {[%clk 0:02:24.5]} 12. Bd3 {[%clk 0:02:50.2]} 12... Nc6
{[%clk 0:02:20.3]} 13. Bb5 {[%clk 0:02:50.2]} 13... Na7 {[%clk 0:02:20.4]} 14.
Bd3 {[%clk 0:02:49.8]} 14... Nc8 {[%clk 0:02:13.4]} 15. O-O {[%clk 0:02:45.8]}
15... a4 {[%clk 0:02:12.3]} 16. Nc1 {[%clk 0:02:45.8]} 16... Nb6 {[%clk
0:01:55.3]} 17. Qf2 {[%clk 0:02:43.9]} 17... Nbd7 {[%clk 0:01:37.6]} 18. Bb5
{[%clk 0:02:37]} 18... a3 {[%clk 0:01:36.9]} 19. b3 {[%clk 0:02:36.4]} 19... Qa5
{[%clk 0:01:37.3]} 20. Bd2 {[%clk 0:01:58.8]} 20... Qc7 {[%clk 0:01:32.4]} 21.
N1e2 {[%clk 0:01:55.9]} 21... Nc5 {[%clk 0:01:22]} 22. Be3 {[%clk 0:01:55.3]}
22... Rfd8 {[%clk 0:01:22.1]} 23. Nd5 {[%clk 0:01:52.8]} 23... Nxd5 {[%clk
0:01:12.8]} 24. exd5 {[%clk 0:01:53.7]} 24... Bf5 {[%clk 0:01:13.5]} 25. Rd2
{[%clk 0:01:48]} 25... Qa5 {[%clk 0:00:54.4]} 26. c4 {[%clk 0:01:39.8]} 26...
Bf6 {[%clk 0:00:38.2]} 27. Rfd1 {[%clk 0:01:35.9]} 27... Qb4 {[%clk 0:00:25.3]}
28. Ng3 {[%clk 0:01:33.1]} 28... Bg6 {[%clk 0:00:19.2]} 29. f4 {[%clk
0:01:15.2]} 29... exf4 {[%clk 0:00:17.6]} 30. Bxf4 {[%clk 0:01:11.8]} 30... Nxb3
{[%clk 0:00:16.1]} 31. axb3 {[%clk 0:01:11.1]} 31... Qxb3 {[%clk 0:00:14.9]} 32.
Ra1 {[%clk 0:01:03.2]} 32... Bxa1 {[%clk 0:00:13.9]} 0-1

[Event "*** Titled Tuesday Blitz"]
[Site "Chess.com"]
[Date "2020.11.03"]
[Round "9"]
[White "BogdanDeac"]
[Black "Duhless"]
[Result "0-1"]
[WhiteElo "2869"]
[BlackElo "3002"]
[TimeControl "180+1"]
[EndTime "11:48:06 PST"]
[Termination "Duhless won by resignation"]

1. Nf3 {[%clk 0:03:00.9]} 1... Nf6 {[%clk 0:02:59.6]} 2. c4 {[%clk 0:03:00.6]}
2... b6 {[%clk 0:02:57.9]} 3. d4 {[%clk 0:02:58.9]} 3... Bb7 {[%clk 0:02:57.7]}
4. Nc3 {[%clk 0:02:54.9]} 4... e6 {[%clk 0:02:57.7]} 5. a3 {[%clk 0:02:54.4]}
5... g6 {[%clk 0:02:57.5]} 6. Qc2 {[%clk 0:02:52.2]} 6... Bg7 {[%clk 0:02:56.8]}
7. e4 {[%clk 0:02:52.2]} 7... O-O {[%clk 0:02:57.4]} 8. Be2 {[%clk 0:02:45]}
8... d6 {[%clk 0:02:56.4]} 9. O-O {[%clk 0:02:44.3]} 9... Nbd7 {[%clk
0:02:56.7]} 10. Rd1 {[%clk 0:02:44.4]} 10... h6 {[%clk 0:02:46.6]} 11. e5 {[%clk
0:02:38.4]} 11... Nh7 {[%clk 0:02:46.1]} 12. Be3 {[%clk 0:01:16.7]} 12... dxe5
{[%clk 0:02:39.4]} 13. Nxe5 {[%clk 0:00:37.4]} 13... Nxe5 {[%clk 0:02:31.8]} 14.
dxe5 {[%clk 0:00:37.5]} 14... Qe7 {[%clk 0:02:32.4]} 15. f4 {[%clk 0:00:36.2]}
15... Rfd8 {[%clk 0:02:32.5]} 16. Rxd8+ {[%clk 0:00:32.1]} 16... Rxd8 {[%clk
0:02:32.3]} 17. Rd1 {[%clk 0:00:32.7]} 17... Nf8 {[%clk 0:02:32.9]} 18. c5
{[%clk 0:00:26.3]} 18... Rxd1+ {[%clk 0:02:27]} 19. Qxd1 {[%clk 0:00:25.2]}
19... Nd7 {[%clk 0:02:26.3]} 20. Qa4 {[%clk 0:00:23.6]} 20... Nxc5 {[%clk
0:02:04.2]} 21. Qxa7 {[%clk 0:00:22.8]} 21... Bc6 {[%clk 0:02:04.8]} 22. b4
{[%clk 0:00:18.3]} 22... Ne4 {[%clk 0:02:03.9]} 23. Nxe4 {[%clk 0:00:17.8]}
23... Bxe4 {[%clk 0:02:04.8]} 24. Bxb6 {[%clk 0:00:13.8]} 24... Qh4 {[%clk
0:02:04.1]} 25. g3 {[%clk 0:00:14.1]} 25... Qh3 {[%clk 0:02:01.8]} 26. Bf1
{[%clk 0:00:12.6]} 26... Qg4 {[%clk 0:02:02.3]} 27. Qb8+ {[%clk 0:00:11.2]}
27... Kh7 {[%clk 0:02:01.5]} 28. Qxc7 {[%clk 0:00:11.4]} 28... Qf3 {[%clk
0:02:01.5]} 29. Qxf7 {[%clk 0:00:04.4]} 29... Qh1+ {[%clk 0:02:00.3]} 30. Kf2
{[%clk 0:00:04.7]} 30... Qf3+ {[%clk 0:02:00.1]} 31. Ke1 {[%clk 0:00:02.7]}
31... Qc3+ {[%clk 0:01:59.4]} 32. Kf2 {[%clk 0:00:02.9]} 32... Qf3+ {[%clk
0:01:26.5]} 33. Ke1 {[%clk 0:00:02.9]} 33... Bd5 {[%clk 0:01:27.1]} 34. Bc5
{[%clk 0:00:02.7]} 34... Qc3+ {[%clk 0:01:25.6]} 35. Kf2 {[%clk 0:00:02.9]}
35... Qd2+ {[%clk 0:01:20.6]} 36. Kg1 {[%clk 0:00:03]} 36... Qe1 {[%clk
0:01:21.2]} 37. Qd7 {[%clk 0:00:01.3]} 37... Bc4 {[%clk 0:01:19.7]} 0-1

[Event "*** Titled Tuesday Blitz"]
[Site "Chess.com"]
[Date "2020.11.03"]
[Round "9"]
[White "jefferyx"]
[Black "exoticprincess"]
[Result "1-0"]
[WhiteElo "2945"]
[BlackElo "2893"]
[TimeControl "180+1"]
[EndTime "11:48:11 PST"]
[Termination "jefferyx won on time"]

1. e4 {[%clk 0:03:00.9]} 1... c6 {[%clk 0:02:58.1]} 2. d4 {[%clk 0:03:01.2]}
2... d5 {[%clk 0:02:59]} 3. f3 {[%clk 0:03:01.8]} 3... g6 {[%clk 0:02:50.1]} 4.
Nc3 {[%clk 0:03:01.8]} 4... Bg7 {[%clk 0:02:48.2]} 5. Be3 {[%clk 0:03:02.1]}
5... dxe4 {[%clk 0:02:38.2]} 6. fxe4 {[%clk 0:03:03]} 6... Nf6 {[%clk
0:02:38.5]} 7. Nf3 {[%clk 0:03:00.9]} 7... O-O {[%clk 0:02:37.4]} 8. Qd2 {[%clk
0:03:00.9]} 8... Na6 {[%clk 0:02:17.5]} 9. O-O-O {[%clk 0:03:00.6]} 9... Nb4
{[%clk 0:02:12.3]} 10. Bh6 {[%clk 0:02:38.6]} 10... a5 {[%clk 0:01:59.7]} 11.
Bxg7 {[%clk 0:02:38.9]} 11... Kxg7 {[%clk 0:01:59.6]} 12. Be2 {[%clk 0:02:39.2]}
12... Be6 {[%clk 0:01:48.3]} 13. Kb1 {[%clk 0:02:28.2]} 13... Qb6 {[%clk
0:01:39.1]} 14. Ng5 {[%clk 0:02:27.7]} 14... Bd7 {[%clk 0:01:12.6]} 15. Rhf1
{[%clk 0:02:27.4]} 15... h6 {[%clk 0:01:10]} 16. Nf3 {[%clk 0:02:27.5]} 16...
Be6 {[%clk 0:01:10]} 17. a3 {[%clk 0:02:16.4]} 17... Rfd8 {[%clk 0:01:08.7]} 18.
Ne5 {[%clk 0:02:02.7]} 18... Qc7 {[%clk 0:00:58.8]} 19. Qf4 {[%clk 0:02:02.7]}
19... Qb6 {[%clk 0:00:52.2]} 20. Qf2 {[%clk 0:01:56.9]} 20... Nxc2 {[%clk
0:00:43.3]} 21. Kxc2 {[%clk 0:01:52.1]} 21... Bb3+ {[%clk 0:00:43.5]} 22. Kc1
{[%clk 0:01:52.1]} 22... Bxd1 {[%clk 0:00:44.4]} 23. Rxd1 {[%clk 0:01:52.6]}
23... Qc7 {[%clk 0:00:43.9]} 24. Nxf7 {[%clk 0:01:28.9]} 24... Rf8 {[%clk
0:00:32.4]} 25. Ne5 {[%clk 0:01:28.9]} 25... Nxe4 {[%clk 0:00:31.3]} 26. Qe3
{[%clk 0:01:28.6]} 26... Nxc3 {[%clk 0:00:24.1]} 27. Qxc3 {[%clk 0:01:29.5]}
27... Rf6 {[%clk 0:00:22.9]} 28. Bd3 {[%clk 0:01:27.2]} 28... Rd8 {[%clk
0:00:22.9]} 29. g3 {[%clk 0:01:22.4]} 29... a4 {[%clk 0:00:21.5]} 30. Bc2 {[%clk
0:01:18.7]} 30... b5 {[%clk 0:00:19.4]} 31. Ng4 {[%clk 0:01:18.4]} 31... Rfd6
{[%clk 0:00:15.6]} 32. Qe3 {[%clk 0:01:15.7]} 32... g5 {[%clk 0:00:13.1]} 33.
Qe4 {[%clk 0:01:14.4]} 33... Rh8 {[%clk 0:00:05.7]} 34. Rf1 {[%clk 0:01:12.1]}
34... Qd7 {[%clk 0:00:02.6]} 35. Qe5+ {[%clk 0:01:11.9]} 35... Kg8 {[%clk
0:00:02.6]} 36. Rf8+ {[%clk 0:01:10.8]} 36... Kxf8 {[%clk 0:00:03]} 37. Qxh8+
{[%clk 0:01:11.7]} 37... Kf7 {[%clk 0:00:03.9]} 38. Ne5+ {[%clk 0:01:12.4]} 1-0